[Event "EYCC O18-ch 2024"]
[Site "Prague"]
[Date "2024.08.24"]
[Round "3.16"]
[White "Sachilaru, Alexandru"]
[Black "Maldonado Mena, German"]
[Result "1/2-1/2"]
[ECO "B59"]
[WhiteElo "2255"]
[BlackElo "2073"]
[Annotator "RC"]
[PlyCount "90"]
[EventDate "2024.08.19"]
[EventType "swiss"]
[EventCountry "CZE"]
[SourceTitle "playchess.com"]
[Source "ChessBase"]
[SourceQuality "1"]
[TimeControl "5400+30"]

1. e4 c5 {[%emt 0:00:05]} 2. Nf3 {[%emt 0:00:16]} d6 {[%emt 0:00:05]} 3. d4 {[%emt 0:00:20]} cxd4 {[%emt 0:00:06]} 4. Nxd4 {[%emt 0:00:09]} Nf6 {[%emt 0:00:06]} 5. Nc3 {[%emt 0:00:09]} Nc6 {[%emt 0:00:17]} 6. Be2 {[%emt 0:06:01]} e5 {[%emt 0:01:02]} 7. Nb3 {[%emt 0:01:28]} Be7 {[%emt 0:02:29]} 8. O-O {[%emt 0:01:13]} O-O {[%emt 0:00:14]} 9. Be3 {[%emt 0:00:55]} a5 {[%emt 0:00:42]} 10. a4 {[%emt 0:09:25]} Be6 {[%emt 0:00:06]} 11. Bf3 {[%emt 0:01:33]} Nb4 {[%emt 0:00:52]} 12. Qd2 {[%emt 0:06:58]} d5 {[%emt 0:19:38]} 13. exd5 {[%emt 0:10:41]} Nbxd5 {[%emt 0:09:16]} 14. Bc5 {[%emt 0:07:49]} Bxc5 {[%emt 0:17:32]} 15. Nxc5 {[%emt 0:00:48]} Nxc3 {[%emt 0:00:06]} 16. Qxc3 {[%emt 0:00:33]} Qc7 {[%emt 0:05:07]} 17. Nxe6 {[%emt 0:06:28]} Qxc3 {[%emt 0:00:06]} 18. bxc3 {[%emt 0:00:03]} fxe6 {[%emt 0:00:08]} 19. Bxb7 {[%emt 0:00:44]} Ra7 {[%emt 0:00:38]} 20. Rab1 {[%emt 0:01:36]} Rb8 {[%emt 0:00:15]} 21. Bd5 {[%emt 0:04:20]} Re8 {[%emt 0:00:05]} 22. Rb7 {[%emt 0:02:42]} Rxb7 {[%emt 0:00:57]} 23. Bxb7 {[%emt 0:00:06]} Rb8 {[%emt 0:04:32]} 24. Ba6 {[%emt 0:02:26]} Rb2 {[%emt 0:00:12]} 25. Re1 {[%emt 0:10:33]} e4 {[%emt 0:02:39]} 26. Rc1 {[%emt 0:04:50]} Nd5 {[%emt 0:02:27]} 27. c4 {[%emt 0:02:17]} Nb4 {[%emt 0:02:36]} 28. Bb5 {[%emt 0:00:49]} Na2 {[%emt 0:00:14]} 29. Re1 {[%emt 0:04:14]} Rxc2 {[%emt 0:00:08]} 30. Kf1 {[%emt 0:02:04]} Nc3 {[%emt 0:01:33]} 31. Bc6 {[%emt 0:00:38]} Kf7 {[%emt 0:01:02]} 32. Bxe4 {[%emt 0:01:01]} Nxe4 {[%emt 0:00:20]} 33. Rxe4 {[%emt 0:00:03]} Ra2 {[%emt 0:00:12]} 34. c5 {[%emt 0:00:36]} Rc2 {[%emt 0:00:04]} 35. Re5 {[%emt 0:01:12]} Kf6 {[%emt 0:00:32]} 36. Rh5 {[%emt 0:02:41]} h6 {[%emt 0:02:39]} 37. c6 {[%emt 0:01:26]} e5 {[%emt 0:00:06]} 38. Rh4 {[%emt 0:00:51]} Rxc6 {[%emt 0:00:51]} 39. Re4 {[%emt 0:01:35]} Kf5 {[%emt 0:01:04]} 40. f3 {[%emt 0:00:33]} Rc2 {[%emt 0:00:04]} 41. h4 {[%emt 0:00:55]} h5 {[%emt 0:01:53]} 42. Kg1 {[%emt 0:01:50]} Rb2 {[%emt 0:07:14]} 43. Kf1 {[%emt 0:00:58]} Rc2 {[%emt 0:02:01]} 44. Kg1 {[%emt 0:01:21]} Rd2 45. Kf1 Rd4 1/2-1/2

[Event "EYCC O18-ch 2024"]
[Site "Prague"]
[Date "2024.08.24"]
[Round "3.17"]
[White "Baranciuc, Alexandr"]
[Black "Hak, David"]
[Result "0-1"]
[ECO "B31"]
[WhiteElo "2332"]
[BlackElo "2239"]
[Annotator "ChessBase"]
[PlyCount "112"]
[EventDate "2024.08.19"]
[EventType "swiss"]
[EventCountry "CZE"]
[SourceTitle "playchess.com"]
[Source "ChessBase"]
[SourceQuality "1"]
[TimeControl "5400+30"]

1. e4 {[%emt 0:00:07]} c5 {[%emt 0:00:05]} 2. Nf3 {[%emt 0:00:06]} Nc6 {[%emt 0:00:04]} 3. Bb5 {[%emt 0:00:07]} g6 {[%emt 0:00:03]} 4. c3 {[%emt 0:00:10]} Nf6 {[%emt 0:00:57]} 5. Qe2 {[%emt 0:00:07]} Bg7 {[%emt 0:00:05]} 6. O-O {[%emt 0:01:05]} e5 {[%emt 0:00:30]} 7. d4 {[%emt 0:02:09]} cxd4 {[%emt 0:05:32]} 8. cxd4 {[%emt 0:00:09]} exd4 {[%emt 0:05:02]} 9. e5 {[%emt 0:00:08]} Nd5 {[%emt 0:00:21]} 10. Bc4 {[%emt 0:00:07]} Nb6 {[%emt 0:02:42]} 11. Bg5 {[%emt 0:10:35]} Qc7 {[%emt 0:00:14]} 12. Na3 {[%emt 0:00:07]} O-O {[%emt 0:09:31]} 13. Nb5 {[%emt 0:10:30]} Qb8 {[%emt 0:00:10]} 14. Rae1 {[%emt 0:15:45]} Nxc4 {[%emt 0:28:38]} 15. Qxc4 {[%emt 0:00:03]} b6 {[%emt 0:00:29]} 16. Nbxd4 {[%emt 0:23:03]} Nxd4 {[%emt 0:01:38]} 17. Nxd4 {[%emt 0:00:01]} Bxe5 {[%emt 0:00:42]} 18. f4 {[%emt 0:03:33]} Ba6 {[%emt 0:00:53]} 19. Qd5 {[%emt 0:02:46]} Bg7 {[%emt 0:08:01]} 20. Nb5 {[%emt 0:17:34]} Qb7 {[%emt 0:17:59]} 21. Qxb7 {[%emt 0:00:23]} Bxb7 {[%emt 0:00:08]} 22. Be7 {[%emt 0:00:01]} Rfc8 {[%emt 0:03:37]} 23. Nd6 {[%emt 0:00:05]} Ba6 {[%emt 0:01:17]} 24. Nxc8 {[%emt 0:02:54]} Bd4+ {[%emt 0:00:59]} 25. Rf2 {[%emt 0:01:30]} Rxc8 {[%emt 0:00:21]} 26. Rd1 {[%emt 0:00:12]} Rc2 {[%emt 0:00:33]} 27. Bh4 {[%emt 0:00:38]} Be2 {[%emt 0:09:55]} 28. Rb1 {[%emt 0:00:52]} h6 {[%emt 0:02:03]} 29. g4 {[%emt 0:07:12]} Bxg4 {[%emt 0:00:44]} 30. Kf1 {[%emt 0:02:30]} Bxf2 {[%emt 0:00:07]} 31. Bxf2 {[%emt 0:00:01]} Bh3+ {[%emt 0:00:39]} 32. Kg1 {[%emt 0:00:11]} Bf5 {[%emt 0:00:23]} 33. Re1 {[%emt 0:00:07]} Rxb2 {[%emt 0:00:56]} 34. Re8+ {[%emt 0:00:05]} Kh7 {[%emt 0:00:02]} 35. Bd4 {[%emt 0:00:04]} Rb1+ {[%emt 0:00:09]} 36. Kf2 {[%emt 0:00:00]} g5 {[%emt 0:00:19]} 37. fxg5 {[%emt 0:00:24]} hxg5 {[%emt 0:00:21]} 38. Rh8+ {[%emt 0:00:14]} Kg6 {[%emt 0:00:01]} 39. Rg8+ {[%emt 0:00:01]} Kh6 {[%emt 0:01:37]} 40. Rh8+ {[%emt 0:01:28]} Bh7 {[%emt 0:00:13]} 41. Ra8 {[%emt 0:00:00]} Rb4 {[%emt 0:00:25]} 42. Ke3 {[%emt 0:00:35]} Ra4 {[%emt 0:00:13]} 43. Bf6 {[%emt 0:02:46]} Re4+ {[%emt 0:01:19]} 44. Kd2 {[%emt 0:00:11]} Rf4 {[%emt 0:00:07]} 45. Bd8 {[%emt 0:00:13]} Rf2+ {[%emt 0:00:45]} 46. Ke3 {[%emt 0:00:01]} Rxa2 {[%emt 0:00:48]} 47. Bxb6 {[%emt 0:00:01]} Ra3+ {[%emt 0:01:34]} 48. Kf2 {[%emt 0:00:04]} Ra2+ {[%emt 0:00:12]} 49. Ke3 {[%emt 0:00:03]} Rxh2 {[%emt 0:00:41]} 50. Rxa7 {[%emt 0:00:11]} Rh3+ {[%emt 0:00:23]} 51. Kd4 {[%emt 0:00:07]} Rd3+ {[%emt 0:00:30]} 52. Ke5 {[%emt 0:00:27]} Kg6 {[%emt 0:00:51]} 53. Bd4 {[%emt 0:00:11]} d6+ {[%emt 0:00:17]} 54. Kd5 {[%emt 0:00:07]} f5 {[%emt 0:00:47]} 55. Rg7+ {[%emt 0:00:07]} Kh6 {[%emt 0:00:01]} 56. Rd7 {[%emt 0:00:06]} Bg8+ {[%emt 0:00:08]} 0-1

[Event "EYCC O18-ch 2024"]
[Site "Prague"]
[Date "2024.08.24"]
[Round "3.18"]
[White "Zajakins, Artjoms"]
[Black "Falkevall, Axel"]
[Result "1/2-1/2"]
[ECO "E97"]
[WhiteElo "1981"]
[BlackElo "2325"]
[Annotator "RC"]
[PlyCount "120"]
[EventDate "2024.08.19"]
[EventType "swiss"]
[EventCountry "CZE"]
[SourceTitle "playchess.com"]
[Source "ChessBase"]
[SourceQuality "1"]
[TimeControl "5400+30"]

1. d4 {[%emt 0:00:04]} Nf6 {[%emt 0:00:06]} 2. c4 {[%emt 0:00:05]} g6 {[%emt 0:00:03]} 3. Nc3 {[%emt 0:00:09]} Bg7 {[%emt 0:00:07]} 4. e4 {[%emt 0:00:16]} d6 {[%emt 0:00:06]} 5. Nf3 {[%emt 0:00:12]} O-O {[%emt 0:00:07]} 6. Be2 {[%emt 0:00:14]} e5 {[%emt 0:00:05]} 7. O-O {[%emt 0:00:29]} Nc6 {[%emt 0:00:10]} 8. dxe5 {[%emt 0:01:02]} dxe5 {[%emt 0:00:58]} 9. Bg5 {[%emt 0:01:15]} Qxd1 {[%emt 0:09:27]} 10. Rfxd1 {[%emt 0:00:59]} Bg4 {[%emt 0:02:18]} 11. Rac1 {[%emt 0:23:32]} Bxf3 {[%emt 0:08:49]} 12. Bxf3 {[%emt 0:00:35]} Nd4 {[%emt 0:01:20]} 13. Nb5 {[%emt 0:03:22]} Ne6 {[%emt 0:04:56]} 14. Bxf6 {[%emt 0:17:40]} Bxf6 {[%emt 0:00:10]} 15. Rd7 {[%emt 0:05:16]} c6 {[%emt 0:07:02]} 16. Nc3 {[%emt 0:04:47]} Nc5 {[%emt 0:02:37]} 17. Rdd1 {[%emt 0:01:08]} a5 {[%emt 0:04:30]} 18. g3 {[%emt 0:04:18]} Rfd8 {[%emt 0:03:45]} 19. Rxd8+ {[%emt 0:02:01]} Bxd8 {[%emt 0:00:42]} 20. Rd1 {[%emt 0:01:21]} Bb6 {[%emt 0:01:30]} 21. Kg2 {[%emt 0:03:20]} Kf8 {[%emt 0:01:56]} 22. b3 {[%emt 0:02:24]} Ke7 {[%emt 0:03:02]} 23. Bg4 {[%emt 0:01:44]} Rd8 {[%emt 0:12:23]} 24. Rxd8 {[%emt 0:01:41]} Kxd8 {[%emt 0:02:59]} 25. Na4 {[%emt 0:08:26]} Nxa4 {[%emt 0:00:52]} 26. bxa4 {[%emt 0:00:07]} Kc7 {[%emt 0:01:41]} 27. f4 {[%emt 0:01:18]} Bd4 {[%emt 0:00:35]} 28. Kf3 {[%emt 0:02:57]} Kd6 {[%emt 0:02:08]} 29. Bc8 {[%emt 0:01:34]} b6 {[%emt 0:01:04]} 30. Bb7 {[%emt 0:02:08]} Kc5 {[%emt 0:03:50]} 31. Ba8 {[%emt 0:00:56]} f6 {[%emt 0:01:14]} 32. Bb7 {[%emt 0:00:30]} Bb2 {[%emt 0:08:39]} 33. Ba8 {[%emt 0:00:28]} Bd4 {[%emt 0:02:22]} 34. Bb7 {[%emt 0:00:09]} Kxc4 {[%emt 0:01:16]} 35. Bxc6 {[%emt 0:00:11]} Kb4 {[%emt 0:00:17]} 36. Bb5 {[%emt 0:00:55]} Ka3 {[%emt 0:00:19]} 37. Be8 {[%emt 0:00:42]} Kxa2 {[%emt 0:00:36]} 38. Bb5 {[%emt 0:00:18]} Kb3 {[%emt 0:00:16]} 39. Be8 {[%emt 0:00:22]} Kc3 {[%emt 0:00:18]} 40. Bb5 {[%emt 0:00:28]} Kd2 {[%emt 0:01:04]} 41. Ba6 {[%emt 0:00:22]} Kc3 {[%emt 0:02:19]} 42. Bb5 {[%emt 0:00:11]} Kb4 {[%emt 0:00:08]} 43. Be8 {[%emt 0:00:28]} Kc5 {[%emt 0:00:10]} 44. Bb5 {[%emt 0:00:26]} Kd6 {[%emt 0:00:24]} 45. Bc4 {[%emt 0:00:55]} Ke7 {[%emt 0:00:21]} 46. Bb5 {[%emt 0:00:23]} h5 {[%emt 0:03:37]} 47. h3 {[%emt 0:01:55]} exf4 {[%emt 0:01:22]} 48. gxf4 {[%emt 0:00:18]} g5 {[%emt 0:01:23]} 49. fxg5 {[%emt 0:02:48]} fxg5 {[%emt 0:00:06]} 50. Bc4 {[%emt 0:00:34]} Kf6 {[%emt 0:00:33]} 51. Bb5 {[%emt 0:00:09]} Be5 {[%emt 0:02:23]} 52. Bc6 {[%emt 0:00:55]} g4+ {[%emt 0:01:03]} 53. hxg4 {[%emt 0:00:15]} h4 {[%emt 0:00:09]} 54. Kg2 {[%emt 0:00:23]} Kg5 {[%emt 0:00:16]} 55. Kh3 {[%emt 0:00:23]} Bf6 {[%emt 0:01:06]} 56. Bb5 {[%emt 0:00:28]} Kf4 {[%emt 0:00:10]} 57. Bc6 {[%emt 0:00:18]} Bd8 {[%emt 0:00:20]} 58. Bb5 {[%emt 0:00:18]} Kxe4 {[%emt 0:00:08]} 59. Bc6+ {[%emt 0:00:17]} Kd4 {[%emt 0:00:43]} 60. Bb5 {[%emt 0:00:11]} Kc3 {[%emt 0:00:21]} 1/2-1/2

[Event "EYCC O18-ch 2024"]
[Site "Prague"]
[Date "2024.08.25"]
[Round "4.1"]
[White "Bermudez Ureba, Juan Diego"]
[Black "Ribera Veganzones, Serni"]
[Result "1-0"]
[ECO "B90"]
[WhiteElo "2183"]
[BlackElo "2309"]
[Annotator "ChessBase"]
[PlyCount "75"]
[EventDate "2024.08.19"]
[EventType "swiss"]
[EventCountry "CZE"]
[SourceTitle "playchess.com"]
[Source "ChessBase"]
[SourceQuality "1"]
[TimeControl "5400+30"]

1. e4 {[%emt 0:00:02]} c5 {[%emt 0:00:11]} 2. Nf3 {[%emt 0:00:45]} d6 {[%emt 0:00:10]} 3. d4 {[%emt 0:00:05]} cxd4 {[%emt 0:00:17]} 4. Nxd4 {[%emt 0:00:04]} Nf6 {[%emt 0:00:11]} 5. Nc3 {[%emt 0:00:04]} a6 {[%emt 0:00:06]} 6. Bd3 {[%emt 0:00:15]} g6 {[%emt 0:00:21]} 7. f3 {[%emt 0:00:17]} Qb6 {[%emt 0:01:18]} 8. Nb3 {[%emt 0:11:51]} Bg7 {[%emt 0:01:03]} 9. Qe2 {[%emt 0:01:08]} Qc7 {[%emt 0:00:39]} 10. Be3 {[%emt 0:13:12]} b5 {[%emt 0:00:23]} 11. a3 {[%emt 0:02:02]} Nbd7 {[%emt 0:05:27]} 12. g4 {[%emt 0:08:54]} Nb6 {[%emt 0:05:39]} 13. O-O-O {[%emt 0:07:52]} Be6 {[%emt 0:15:17]} 14. Bd4 {[%emt 0:08:00]} Bxb3 {[%emt 0:14:48]} 15. cxb3 {[%emt 0:00:04]} O-O {[%emt 0:06:11]} 16. h4 {[%emt 0:03:11]} e5 {[%emt 0:07:20]} 17. Be3 {[%emt 0:03:26]} b4 {[%emt 0:03:55]} 18. axb4 {[%emt 0:00:21]} d5 {[%emt 0:00:16]} 19. Bxb6 {[%emt 0:04:14]} Qxb6 {[%emt 0:00:02]} 20. g5 {[%emt 0:00:47]} d4 {[%emt 0:09:44]} 21. gxf6 {[%emt 0:12:07]} Bh6+ {[%emt 0:00:07]} 22. Kc2 {[%emt 0:00:08]} dxc3 {[%emt 0:00:14]} 23. h5 {[%emt 0:00:28]} Bf4 {[%emt 0:03:53]} 24. hxg6 {[%emt 0:00:26]} hxg6 {[%emt 0:02:08]} 25. bxc3 {[%emt 0:00:59]} a5 {[%emt 0:02:44]} 26. b5 {[%emt 0:04:31]} a4 {[%emt 0:03:40]} 27. Bc4 {[%emt 0:02:59]} axb3+ {[%emt 0:02:02]} 28. Bxb3 {[%emt 0:00:05]} Qxf6 {[%emt 0:01:32]} 29. Rd7 {[%emt 0:00:33]} Rac8 {[%emt 0:01:20]} 30. Rhd1 {[%emt 0:00:42]} Kg7 {[%emt 0:03:55]} 31. R1d6 {[%emt 0:00:13]} Qg5 {[%emt 0:00:04]} 32. Rc6 {[%emt 0:03:28]} Qg1 {[%emt 0:01:36]} 33. Rd1 {[%emt 0:00:11]} Qa7 {[%emt 0:00:29]} 34. Qc4 {[%emt 0:00:04]} Qf2+ {[%emt 0:07:06]} 35. Kb1 {[%emt 0:00:03]} Rxc6 {[%emt 0:01:30]} 36. bxc6 {[%emt 0:00:06]} Qxf3 {[%emt 0:00:12]} 37. c7 {[%emt 0:00:29]} Bg5 {[%emt 0:02:11]} 38. Rf1 {[%emt 0:05:01]} 1-0

[Event "EYCC O18-ch 2024"]
[Site "Prague"]
[Date "2024.08.25"]
[Round "4.2"]
[White "Dehtiarov, Roman"]
[Black "Gonzalez Castillo, Jose Javier"]
[Result "1-0"]
[ECO "B15"]
[WhiteElo "2308"]
[BlackElo "2196"]
[Annotator "ChessBase"]
[PlyCount "85"]
[EventDate "2024.08.19"]
[EventType "swiss"]
[EventCountry "CZE"]
[SourceTitle "playchess.com"]
[Source "ChessBase"]
[SourceQuality "1"]
[TimeControl "5400+30"]

1. e4 {[%emt 0:00:25]} c6 {[%emt 0:00:17]} 2. d4 {[%emt 0:00:07]} d5 {[%emt 0:00:05]} 3. Nc3 {[%emt 0:00:08]} dxe4 {[%emt 0:00:05]} 4. Nxe4 {[%emt 0:00:13]} Nf6 {[%emt 0:00:28]} 5. Nxf6+ {[%emt 0:00:10]} exf6 {[%emt 0:00:04]} 6. Bd3 {[%emt 0:00:14]} Bd6 {[%emt 0:00:21]} 7. Qh5 {[%emt 0:00:08]} Na6 {[%emt 0:03:09]} 8. c3 {[%emt 0:01:58]} Nc7 {[%emt 0:00:39]} 9. Ne2 {[%emt 0:01:46]} Be6 {[%emt 0:03:47]} 10. Nf4 {[%emt 0:05:58]} g6 {[%emt 0:04:06]} 11. Nxe6 {[%emt 0:04:51]} Nxe6 {[%emt 0:00:32]} 12. Qh6 {[%emt 0:00:26]} Qc7 {[%emt 0:02:21]} 13. O-O {[%emt 0:02:57]} Bf4 {[%emt 0:07:54]} 14. Qh4 {[%emt 0:04:55]} Bg5 {[%emt 0:02:18]} 15. Bxg5 {[%emt 0:02:14]} fxg5 {[%emt 0:01:04]} 16. Qg4 {[%emt 0:00:20]} Kf8 {[%emt 0:03:11]} 17. Bc4 {[%emt 0:05:18]} h5 {[%emt 0:01:48]} 18. Qg3 {[%emt 0:02:10]} Re8 {[%emt 0:08:41]} 19. Rae1 {[%emt 0:01:55]} h4 {[%emt 0:03:21]} 20. Qh3 {[%emt 0:07:19]} Ng7 {[%emt 0:10:48]} 21. Qg4 {[%emt 0:02:04]} Qf4 {[%emt 0:02:23]} 22. Qd7 {[%emt 0:01:16]} h3 {[%emt 0:01:34]} 23. Rxe8+ {[%emt 0:00:29]} Nxe8 {[%emt 0:00:04]} 24. Re1 {[%emt 0:00:20]} Nd6 {[%emt 0:01:13]} 25. g3 {[%emt 0:00:40]} Qf6 {[%emt 0:00:23]} 26. Bf1 {[%emt 0:02:27]} Kg7 {[%emt 0:04:01]} 27. Bxh3 {[%emt 0:01:19]} Rd8 {[%emt 0:06:16]} 28. Qe7 {[%emt 0:00:47]} Re8 {[%emt 0:00:06]} 29. Qxf6+ {[%emt 0:00:05]} Kxf6 {[%emt 0:00:03]} 30. Rxe8 {[%emt 0:00:14]} Nxe8 {[%emt 0:00:02]} 31. Kf1 {[%emt 0:00:41]} Ke7 {[%emt 0:00:58]} 32. Ke2 {[%emt 0:00:12]} Kd6 {[%emt 0:00:16]} 33. Kd3 {[%emt 0:00:19]} f5 {[%emt 0:00:43]} 34. Bg2 {[%emt 0:01:02]} Nf6 {[%emt 0:00:14]} 35. h3 {[%emt 0:01:22]} b5 {[%emt 0:02:08]} 36. Bf3 {[%emt 0:03:44]} a6 {[%emt 0:03:30]} 37. b3 {[%emt 0:01:53]} Ng8 {[%emt 0:03:18]} 38. c4 {[%emt 0:01:33]} Ne7 {[%emt 0:00:06]} 39. a4 {[%emt 0:01:02]} bxa4 {[%emt 0:04:28]} 40. bxa4 {[%emt 0:00:12]} a5 {[%emt 0:00:36]} 41. c5+ {[%emt 0:00:11]} Kd7 {[%emt 0:00:10]} 42. Kc4 {[%emt 0:00:09]} Ke6 {[%emt 0:00:05]} 43. Bxc6 {[%emt 0:00:13]} 1-0

[Event "EYCC O18-ch 2024"]
[Site "Prague"]
[Date "2024.08.25"]
[Round "4.3"]
[White "Koutlas, Nikolaos"]
[Black "Stalmach, Richard"]
[Result "1/2-1/2"]
[ECO "B52"]
[WhiteElo "2322"]
[BlackElo "2443"]
[Annotator "RC"]
[PlyCount "89"]
[EventDate "2024.08.19"]
[EventType "swiss"]
[EventCountry "CZE"]
[SourceTitle "playchess.com"]
[Source "ChessBase"]
[SourceQuality "1"]
[TimeControl "5400+30"]

1. e4 {[%emt 0:00:03]} c5 {[%emt 0:00:05]} 2. Nf3 {[%emt 0:00:04]} d6 {[%emt 0:00:04]} 3. Bb5+ {[%emt 0:00:53]} Bd7 {[%emt 0:00:09]} 4. Bxd7+ {[%emt 0:00:33]} Nxd7 {[%emt 0:00:09]} 5. O-O {[%emt 0:00:28]} Ngf6 {[%emt 0:00:18]} 6. Re1 {[%emt 0:00:07]} g6 {[%emt 0:03:14]} 7. c3 {[%emt 0:06:35]} Bg7 {[%emt 0:02:17]} 8. d4 {[%emt 0:00:51]} O-O {[%emt 0:00:09]} 9. h3 {[%emt 0:11:29]} Rc8 {[%emt 0:01:35]} 10. d5 {[%emt 0:03:09]} b5 {[%emt 0:06:31]} 11. a4 {[%emt 0:10:14]} b4 {[%emt 0:04:27]} 12. c4 {[%emt 0:02:14]} Ne8 {[%emt 0:01:44]} 13. Ra2 {[%emt 0:02:37]} h6 {[%emt 0:03:59]} 14. Bf4 {[%emt 0:13:33]} e5 {[%emt 0:07:34]} 15. dxe6 fxe6 {[%emt 0:00:09]} 16. Bxd6 {[%emt 0:03:58]} Nxd6 {[%emt 0:03:16]} 17. Qxd6 {[%emt 0:00:04]} Rxf3 {[%emt 0:00:05]} 18. gxf3 {[%emt 0:00:05]} Ne5 {[%emt 0:00:04]} 19. Qxd8+ {[%emt 0:09:33]} Rxd8 {[%emt 0:00:04]} 20. Kf1 {[%emt 0:00:04]} Rd3 {[%emt 0:40:33]} 21. Re3 {[%emt 0:06:09]} Rd1+ {[%emt 0:00:04]} 22. Re1 {[%emt 0:00:03]} Rxe1+ {[%emt 0:00:50]} 23. Kxe1 {[%emt 0:00:10]} Nd3+ {[%emt 0:00:05]} 24. Kd1 {[%emt 0:06:19]} Nxb2+ {[%emt 0:00:23]} 25. Rxb2 {[%emt 0:00:04]} Bxb2 {[%emt 0:00:06]} 26. Nd2 {[%emt 0:00:04]} Bd4 {[%emt 0:06:13]} 27. Ke2 {[%emt 0:00:04]} g5 {[%emt 0:03:37]} 28. Nb3 {[%emt 0:00:12]} Kf7 {[%emt 0:00:08]} 29. Na5 {[%emt 0:03:09]} Kf6 {[%emt 0:01:52]} 30. Nb3 {[%emt 0:02:41]} Ke5 {[%emt 0:00:33]} 31. Nc1 {[%emt 0:03:34]} Bxf2 {[%emt 0:02:28]} 32. Nd3+ {[%emt 0:04:38]} Kd4 {[%emt 0:00:04]} 33. Nxf2 {[%emt 0:00:03]} Kxc4 {[%emt 0:00:28]} 34. Nd3 {[%emt 0:01:06]} Kc3 {[%emt 0:06:28]} 35. Nxc5 {[%emt 0:00:04]} b3 {[%emt 0:00:03]} 36. e5 {[%emt 0:07:00]} a5 {[%emt 0:02:34]} 37. Kd1 {[%emt 0:00:58]} Kb4 {[%emt 0:04:52]} 38. Nd3+ {[%emt 0:05:03]} Kxa4 {[%emt 0:00:03]} 39. Kd2 {[%emt 0:01:07]} Kb5 {[%emt 0:01:03]} 40. Kc3 {[%emt 0:00:22]} a4 {[%emt 0:00:03]} 41. f4 {[%emt 0:00:35]} gxf4 {[%emt 0:01:42]} 42. Nxf4 {[%emt 0:00:06]} Kc5 {[%emt 0:00:02]} 43. h4 {[%emt 0:00:43]} Kc6 {[%emt 0:00:38]} 44. h5 {[%emt 0:00:43]} Kc5 {[%emt 0:00:03]} 45. Nxe6+ {[%emt 0:00:24]} 1/2-1/2

[Event "EYCC O18-ch 2024"]
[Site "Prague"]
[Date "2024.08.25"]
[Round "4.3"]
[White "Zlatkov, Anton"]
[Black "Kocsmar, Akos"]
[Result "1-0"]
[ECO "A05"]
[WhiteElo "2297"]
[BlackElo "2187"]
[Annotator "ChessBase"]
[PlyCount "71"]
[EventDate "2024.08.19"]
[EventType "swiss"]
[EventCountry "CZE"]
[SourceTitle "playchess.com"]
[Source "ChessBase"]
[SourceQuality "1"]
[TimeControl "5400+30"]

1. Nf3 {[%emt 0:00:02]} Nf6 {[%emt 0:00:07]} 2. g3 {[%emt 0:00:34]} b6 {[%emt 0:00:12]} 3. Bg2 {[%emt 0:00:09]} Bb7 {[%emt 0:00:09]} 4. O-O {[%emt 0:00:48]} e6 {[%emt 0:00:25]} 5. c4 {[%emt 0:00:09]} Be7 {[%emt 0:00:10]} 6. Nc3 {[%emt 0:00:11]} O-O {[%emt 0:00:09]} 7. Re1 {[%emt 0:00:10]} d5 {[%emt 0:00:09]} 8. cxd5 {[%emt 0:00:08]} Nxd5 {[%emt 0:00:08]} 9. d4 {[%emt 0:01:15]} c5 {[%emt 0:00:49]} 10. e4 {[%emt 0:00:25]} Nxc3 {[%emt 0:00:26]} 11. bxc3 {[%emt 0:00:04]} Re8 {[%emt 0:00:12]} 12. Bf4 {[%emt 0:07:37]} cxd4 {[%emt 0:00:43]} 13. cxd4 {[%emt 0:00:21]} Nd7 {[%emt 0:00:04]} 14. Qa4 {[%emt 0:05:43]} a6 {[%emt 0:01:08]} 15. Rad1 {[%emt 0:05:52]} b5 {[%emt 0:00:13]} 16. Qb3 {[%emt 0:00:09]} Qb6 {[%emt 0:00:08]} 17. h4 {[%emt 0:08:27]} h6 {[%emt 0:08:02]} 18. g4 {[%emt 0:08:56]} Nf8 {[%emt 0:26:52]} 19. Ne5 {[%emt 0:05:07]} Rad8 {[%emt 0:07:08]} 20. g5 {[%emt 0:19:18]} hxg5 {[%emt 0:03:32]} 21. hxg5 {[%emt 0:00:04]} Rxd4 {[%emt 0:01:49]} 22. Qf3 {[%emt 0:06:38]} Rxd1 {[%emt 0:03:21]} 23. Rxd1 {[%emt 0:00:04]} Rd8 {[%emt 0:08:03]} 24. Rc1 {[%emt 0:08:33]} Rc8 {[%emt 0:00:22]} 25. Rxc8 {[%emt 0:00:39]} Bxc8 {[%emt 0:00:22]} 26. Be3 {[%emt 0:00:06]} Qc7 {[%emt 0:00:55]} 27. Qxf7+ {[%emt 0:00:06]} Kh8 {[%emt 0:00:06]} 28. Qh5+ {[%emt 0:01:26]} Kg8 {[%emt 0:00:02]} 29. Qf7+ {[%emt 0:00:05]} Kh8 {[%emt 0:00:07]} 30. Bf4 {[%emt 0:02:28]} Qd8 {[%emt 0:02:13]} 31. Qh5+ {[%emt 0:06:31]} Kg8 {[%emt 0:00:07]} 32. Qf7+ {[%emt 0:02:36]} Kh8 {[%emt 0:00:02]} 33. Bf3 {[%emt 0:01:44]} Bd7 {[%emt 0:01:02]} 34. Nxd7 {[%emt 0:04:01]} Nxd7 {[%emt 0:03:07]} 35. Bg4 {[%emt 0:00:05]} Nc5 {[%emt 0:01:29]} 36. Be5 {[%emt 0:00:41]} 1-0